fUSD/lending_fUSD_20251112
["ID","MTS","AMOUNT","RATE_DAILY","PERIOD"]
[393738600,1762957856503,-500.0,0.00040134,20]
[393738601,1762957856512,-500.0,0.00040134,20]
[393738602,1762957856522,-500.0,0.00040134,20]
[393738603,1762957856532,-500.0,0.00040134,20]
[393738604,1762957856542,-500.0,0.00040134,20]
[393738605,1762957856552,-500.0,0.00040134,20]
[393738606,1762957856562,-500.0,0.00040134,20]
[393738607,1762957856571,-500.0,0.00040134,20]
[393738608,1762957856580,-321.66864761,0.00040134,20]
[393738609,1762957856590,-500.0,0.00040134,20]
[393738610,1762957856600,-500.0,0.00040134,20]
[393738611,1762957856609,-500.0,0.00040134,20]
[393738612,1762957856619,-500.0,0.00040134,20]
[393738613,1762957856628,-500.0,0.00040134,20]
[393738614,1762957856638,-500.0,0.00040134,20]
[393738615,1762957856647,-500.0,0.00040134,20]
[393738616,1762957856657,-500.0,0.00040134,20]
[393738617,1762957856668,-500.0,0.00040134,20]
[393738618,1762957856677,-500.0,0.00040134,20]
[393738619,1762957856687,-451.48171549,0.00040134,20]
[393738620,1762957856696,-500.0,0.00040134,20]
[393738621,1762957856705,-605.45710218,0.00040134,20]
[393738622,1762957856715,-500.0,0.00040134,20]
[393738623,1762957856726,-500.0,0.00040134,20]
[393738624,1762957856735,-347.63984289,0.00040134,20]
[393738625,1762957856744,-417.74132347,0.00040134,20]
[393738626,1762957856753,-500.0,0.00040134,20]
[393738627,1762957856762,-500.0,0.00040134,20]
[393738628,1762957856772,-500.0,0.00040134,20]
[393738629,1762957856781,-265.54,0.00040134,20]
[393738630,1762957856790,-500.0,0.00040134,20]
[393738631,1762957856800,-500.0,0.00040134,20]
[393738632,1762957856809,-500.0,0.00040134,2]
[393738633,1762957856819,-500.0,0.00040134,20]
[393738634,1762957856828,-2500.0,0.00040135,14]
[393738635,1762957856837,-1214.80180801,0.00040135,14]
[393738636,1762957856846,-706.0,0.00040157,10]
[393738637,1762957856855,-199.0,0.00040163,9]
[393738638,1762957856865,-626.84452,0.0004024,3]
[393738639,1762957856874,-500.0,0.00040244,15]
[393738640,1762957856883,-500.0,0.00040244,15]
[393738641,1762957856892,-500.0,0.00040244,15]
[393738642,1762957856902,-500.0,0.00040244,15]
[393738643,1762957856911,-500.0,0.00040244,15]
[393738644,1762957856921,-500.0,0.00040244,15]
[393738645,1762957856930,-465.84377535,0.00040244,15]
[393738646,1762957856939,-500.0,0.00040244,15]
[393738647,1762957856949,-500.0,0.00040244,15]
[393738648,1762957856958,-500.0,0.00040244,15]
[393738649,1762957856967,-500.0,0.00040244,15]
[393738650,1762957856976,-500.0,0.00040244,15]
[393738651,1762957856985,-500.0,0.00040244,15]
[393738652,1762957856994,-500.0,0.00040244,15]
[393738653,1762957857003,-500.0,0.00040244,15]
[393738654,1762957857012,-500.0,0.00040244,30]
[393738655,1762957857022,-500.0,0.00040244,30]
[393738656,1762957857031,-500.0,0.00040244,30]
[393738657,1762957857042,-500.0,0.00040244,30]
[393738658,1762957857052,-500.0,0.00040244,30]
[393738659,1762957857062,-500.0,0.00040244,30]
[393738660,1762957857071,-500.0,0.00040244,30]
[393738661,1762957857081,-500.0,0.00040244,30]
[393738662,1762957857091,-500.0,0.00040244,30]
[393738663,1762957857100,-500.0,0.00040244,30]
[393738664,1762957857110,-500.0,0.00040244,30]
[393738665,1762957857119,-353.90794541,0.00040244,30]
[393738666,1762957857128,-181.31025833,0.00040245,120]
[393738667,1762957857138,-156.53410877,0.00040245,15]
[393738668,1762957857148,-177.02344936,0.00040245,28]
[393738669,1762957857157,-1019.5405,0.00040265,2]
[393738670,1762957857166,-622.30222,0.00040288,30]
[393738671,1762957857175,-706.0,0.00040294,10]
[393738672,1762957857184,-206.82,0.000403,60]
[393738673,1762957857193,-210.67809692,0.00040304,2]
[393738674,1762957857203,-347.9650795,0.00040325,30]
[393738675,1762957857215,-642.50174316,0.00040343,30]
[393738676,1762957857225,-513.622924,0.00040343,2]
[393738677,1762957857235,-58725.2696913,0.00040343,2]
[393738678,1762957857244,-6085.2341978,0.00040343,2]
[393738679,1762957857255,-2000.0,0.00040343,30]
[393738680,1762957857264,-500.0,0.00040344,20]
[393738681,1762957857274,-500.0,0.00040344,20]
[393738682,1762957857283,-500.0,0.00040344,20]
[393738683,1762957857293,-500.0,0.00040344,20]
[393738684,1762957857303,-500.0,0.00040344,20]
[393738685,1762957857312,-500.0,0.00040344,20]
[393738686,1762957857322,-500.0,0.00040344,20]
[393738687,1762957857331,-500.0,0.00040344,20]
[393738688,1762957857340,-500.0,0.00040344,20]
[393738689,1762957857349,-500.0,0.00040344,20]
[393738690,1762957857359,-500.0,0.00040344,20]
[393738691,1762957857368,-479.66,0.00040344,20]
[393738692,1762957857378,-500.0,0.00040344,20]
[393738693,1762957857387,-450.02,0.00040344,20]
[393738694,1762957857397,-499.296404,0.00040344,120]
[393738695,1762957857406,-499.296404,0.00040344,120]
[393738696,1762957857415,-499.296404,0.00040344,120]
[393738697,1762957857424,-499.296404,0.00040344,120]
[393738698,1762957857433,-499.296404,0.00040344,120]
[393738699,1762957857443,-499.296404,0.00040344,120]
[393738700,1762957857452,-499.296404,0.00040344,120]
[393738701,1762957857462,-499.296404,0.00040344,120]
[393738702,1762957857471,-499.296404,0.00040344,120]
[393738703,1762957857480,-499.296404,0.00040344,120]
[393738704,1762957857489,-499.296404,0.00040344,120]
[393738705,1762957857498,-499.296404,0.00040344,120]
[393738706,1762957857508,-499.296404,0.00040344,120]
[393738707,1762957857517,-499.296404,0.00040344,120]
[393738708,1762957857527,-499.296404,0.00040344,120]
[393738709,1762957857536,-499.296404,0.00040344,120]
[393738710,1762957857546,-499.296404,0.00040344,120]
[393738711,1762957857555,-499.296404,0.00040344,120]
[393738712,1762957857564,-499.296404,0.00040344,120]
[393738713,1762957857574,-499.296408,0.00040344,120]
[393738714,1762957857583,-200.0,0.00040344,7]
[393738715,1762957857592,-500.0,0.00040344,20]
[393738716,1762957857601,-500.0,0.00040344,20]
[393738717,1762957857611,-500.0,0.00040344,20]
[393738718,1762957857620,-500.0,0.00040344,20]
[393738719,1762957857630,-500.0,0.00040344,20]
[393738720,1762957857639,-500.0,0.00040344,20]
[393738721,1762957857648,-500.0,0.00040344,20]
[393738722,1762957857657,-500.0,0.00040344,20]
[393738723,1762957857666,-500.0,0.00040344,20]
[393738724,1762957857675,-500.0,0.00040344,20]
[393738725,1762957857684,-500.0,0.00040344,20]
[393738726,1762957857694,-500.0,0.00040344,20]
[393738727,1762957857703,-372.04960065,0.00040344,20]
[393738728,1762957857713,-533.16683999,0.00040344,20]
[393738729,1762957857722,-500.0,0.00040344,20]
[393738730,1762957857731,-500.0,0.00040344,20]
[393738731,1762957857740,-500.0,0.00040344,20]
[393738732,1762957857750,-500.0,0.00040344,20]
[393738733,1762957857760,-500.0,0.00040344,20]
[393738734,1762957857769,-500.0,0.00040344,20]
[393738735,1762957857778,-500.0,0.00040344,20]
[393738736,1762957857786,-500.0,0.00040344,20]
[393738737,1762957857797,-339.13022873,0.00040344,20]
[393738738,1762957857806,-626.84451,0.00040344,4]
[393738739,1762957857815,-500.0,0.00040344,20]
[393738740,1762957857828,-5609.30688089,0.00040344,29]
[393738741,1762957857837,-3249915.73780186,0.00040345,7]
[393738742,1762957858122,-9697.66716976,0.00040345,7]
[393738743,1762957858136,-7136.62584205,0.00040345,7]
[393738744,1762957858162,-150.0,0.00039586,7]
[393738745,1762957858171,-380162.5800531,0.00040345,7]
[393738746,1762957858185,-729691.11868657,0.00040345,7]
[393738747,1762957860570,200.0,0.00040345,30]
[393738749,1762957949187,200.0,0.00040345,30]
[393738750,1762957949643,300.0,0.00040345,30]
[393738751,1762958162956,200.0,0.00040356,30]
[393738788,1762958219668,5795.23427658,0.00040356,30]
[393739040,1762958462580,200.0,0.00040355,30]
[393739041,1762958761143,200.0,0.00040355,30]
[393739042,1762958808841,1092.77791424,0.0003,120]
[393739043,1762958829278,1000.0,0.00040355,120]
[393739044,1762958832049,1000.0,0.00040355,120]
[393739045,1762958832960,1000.0,0.00040355,120]
[393739046,1762958833963,1000.0,0.00040355,120]
[393739047,1762958842785,398.85,0.00040355,120]
[393739048,1762958849835,-391.0,0.00032,120]
[393739049,1762958849896,-200.0,0.00034,120]
[393739050,1762958849955,-339.45574779,0.000352,60]
[393739051,1762958850018,-349.16677592,0.000352,60]
[393739052,1762958850078,-200.0,0.00036,120]
[393739053,1762958850137,-298.22613208,0.00036258,30]
[393739054,1762958850205,-300.0,0.00038,120]
[393739055,1762958850282,-252.518,0.00038574,52]
[393739056,1762958850352,-197.19183191,0.00038662,60]
[393739057,1762958850419,-999.0,0.00039177,120]
[393739058,1762958850500,-500.0,0.00039439,120]
[393739059,1762958850581,-154.835912,0.00039462,120]
[393739060,1762958850652,-289.4139,0.0003999,120]
[393739061,1762958850717,-597.93,0.00039998,120]
[393739062,1762958850782,-999.0,0.00039999,120]
[393739063,1762958850847,-1500.0,0.0004,120]
[393739064,1762958850909,-202.43601,0.0004,120]
[393739065,1762958850972,-478.56668374,0.00040255,120]
[393739066,1762958851032,-5000.0,0.00040255,120]
[393739067,1762958851094,-186.14,0.000403,60]
[393739068,1762958851166,-350.7723534,0.000403,60]
[393739069,1762958851241,-150.0,0.00040346,30]
[393739070,1762958851310,-445.94592211,0.00040354,31]
[393739071,1762958851373,-400.53896046,0.00040354,31]
[393739072,1762958851438,-429.08513585,0.00040354,31]
[393739073,1762958851502,-247.03365216,0.00040354,31]
[393739074,1762958851563,-500.0,0.00040354,31]
[393739075,1762958851622,-500.0,0.00040354,31]
[393739076,1762958851681,-576.41185505,0.00040354,31]
[393739077,1762958851745,-500.0,0.00040354,31]
[393739078,1762958851807,-246.64797802,0.00040354,31]
[393739079,1762958851870,-500.0,0.00040354,31]
[393739080,1762958851928,-408.84528205,0.00040354,31]
[393739081,1762958851989,-500.0,0.00040354,31]
[393739082,1762958852055,-500.0,0.00040354,31]
[393739083,1762958852126,-500.0,0.00040354,31]
[393739084,1762958852196,-244.21963103,0.00040354,31]
[393739085,1762958852265,-215.33153084,0.00040354,31]
[393739086,1762958852335,-500.0,0.00040354,31]
[393739087,1762958852408,-500.0,0.00040354,31]
[393739088,1762958852478,-500.0,0.00040354,31]
[393739089,1762958852551,-500.0,0.00040354,31]
[393739090,1762958852625,-500.0,0.00040354,31]
[393739091,1762958852701,-500.0,0.00040354,31]
[393739092,1762958852767,-500.0,0.00040354,31]
[393739093,1762958852831,-500.0,0.00040354,31]
[393739094,1762958852904,-500.0,0.00040354,31]
[393739095,1762958852975,-500.0,0.00040354,31]
[393739096,1762958853047,-500.0,0.00040354,31]
[393739097,1762958853119,-500.0,0.00040354,31]
[393739098,1762958853195,-500.0,0.00040354,31]
[393739099,1762958853266,-500.0,0.00040354,31]
[393739100,1762958853333,-500.0,0.00040354,31]
[393739101,1762958853400,-500.0,0.00040354,31]
[393739102,1762958853463,-500.0,0.00040354,31]
[393739103,1762958853530,-500.0,0.00040354,31]
[393739104,1762958853603,-500.0,0.00040354,31]
[393739105,1762958853676,-500.0,0.00040354,31]
[393739106,1762958853747,-500.0,0.00040354,31]
[393739107,1762958853814,-500.0,0.00040354,31]
[393739108,1762958853879,-500.0,0.00040354,31]
[393739109,1762958853947,-500.0,0.00040354,31]
[393739110,1762958854012,-500.0,0.00040354,31]
[393739111,1762958854078,-500.0,0.00040354,31]
[393739112,1762958854326,-500.0,0.00040354,31]
[393739113,1762958854403,-500.0,0.00040354,31]
[393739114,1762958854474,-500.0,0.00040354,31]
[393739115,1762958854540,-500.0,0.00040354,31]
[393739116,1762958854609,-500.0,0.00040354,31]
[393739117,1762958854692,-500.0,0.00040354,31]
[393739118,1762958854766,-304.05182396,0.00040354,31]
[393739119,1762958854835,-500.0,0.00040354,31]
[393739120,1762958854900,-500.0,0.00040354,31]
[393739121,1762958854962,-500.0,0.00040354,31]
[393739122,1762958855026,-500.0,0.00040354,31]
[393739123,1762958855093,-500.0,0.00040354,31]
[393739124,1762958855155,-500.0,0.00040354,31]
[393739125,1762958855221,-500.0,0.00040354,31]
[393739126,1762958855283,-500.0,0.00040354,31]
[393739127,1762958855343,-500.0,0.00040354,31]
[393739128,1762958855404,-500.0,0.00040354,31]
[393739129,1762958855466,-500.0,0.00040354,31]
[393739130,1762958855532,-500.0,0.00040354,31]
[393739131,1762958855610,-500.0,0.00040354,31]
[393739132,1762958855676,-500.0,0.00040354,31]
[393739133,1762958855756,-500.0,0.00040354,31]
[393739134,1762958855836,-612.81977406,0.00040354,31]
[393739135,1762958855903,-500.0,0.00040354,31]
[393739136,1762958855969,-500.0,0.00040354,31]
[393739137,1762958856035,-500.0,0.00040354,31]
[393739138,1762958856096,-500.0,0.00040354,31]
[393739139,1762958856159,-500.0,0.00040354,31]
[393739140,1762958856227,-623.64664156,0.00040354,31]
[393739141,1762958856294,-500.0,0.00040354,31]
[393739142,1762958856355,-157.67,0.00040355,120]
[393739143,1762958856432,-181.8886665,0.00040355,30]
[393739144,1762958856509,-154.201287,0.00040355,120]
[393739145,1762958856576,-151.0,0.00040355,30]
[393739146,1762958856638,-151.0,0.00040355,30]
[393739147,1762958856708,-151.0,0.00040355,30]
[393739148,1762958856770,-248.333037,0.00040355,30]
[393739149,1762958856830,-301.999999,0.00040355,120]
[393739150,1762958856910,-160.0,0.00040355,120]
[393739151,1762958856988,-160.0,0.00040355,120]
[393739152,1762958857054,-160.0,0.00040355,120]
[393739153,1762958857113,-160.0,0.00040355,120]
[393739154,1762958857172,-160.0,0.00040355,120]
[393739155,1762958857232,-160.0,0.00040355,120]
[393739156,1762958857290,-160.0,0.00040355,120]
[393739157,1762958857349,-160.0,0.00040355,120]
[393739158,1762958857415,-160.0,0.00040355,120]
[393739159,1762958857471,-160.0,0.00040355,120]
[393739160,1762958857526,-160.0,0.00040355,120]
[393739161,1762958857583,-160.0,0.00040355,120]
[393739162,1762958857641,-160.0,0.00040355,120]
[393739163,1762958857701,-160.0,0.00040355,120]
[393739164,1762958857762,-160.0,0.00040355,120]
[393739165,1762958857820,-160.0,0.00040355,120]
[393739166,1762958857879,-160.0,0.00040355,120]
[393739167,1762958857939,-160.0,0.00040355,120]
[393739168,1762958857998,-160.0,0.00040355,120]
[393739169,1762958858059,-160.0,0.00040355,120]
[393739170,1762958858122,-151.0,0.00040355,30]
[393739171,1762958858186,-151.0,0.00040355,120]
[393739172,1762958858248,-158.537275,0.00040355,120]
[393739173,1762958858304,-152.294396,0.00040355,120]
[393739174,1762958858369,-284.157806,0.00040355,45]
[393739175,1762958858434,-151.0,0.00040355,120]
[393739176,1762958858493,-151.0,0.00040355,120]
[393739177,1762958858558,-151.0,0.00040355,120]
[393739178,1762958858629,-151.0,0.00040355,120]
[393739179,1762958858700,-151.0,0.00040355,120]
[393739180,1762958858768,-151.0,0.00040355,120]
[393739181,1762958858835,-151.0,0.00040355,120]
[393739182,1762958858908,-151.0,0.00040355,120]
[393739183,1762958858969,-176.449498,0.00040355,120]
[393739184,1762958859032,-150.0,0.00040355,30]
[393739185,1762958859094,-403.04,0.000404,30]
[393739186,1762958859155,-849.44,0.000404,30]
[393739187,1762958859227,-500.0,0.00040465,30]
[393739188,1762958859292,-622.30222,0.00040488,30]
[393739189,1762958859357,-250.0,0.000405,120]
[393739190,1762958859422,-206.3313054,0.00040622,120]
[393739191,1762958859481,-622.30222,0.00040688,30]
[393739192,1762958859540,-250.0,0.000407,120]
[393739193,1762958859603,-150.0,0.00040785,120]
[393739194,1762958859665,-1184.24214863,0.000408,120]
[393739195,1762958859726,-492.82150379,0.000408,60]
[393739196,1762958859787,-999.0,0.00040821,120]
[393739197,1762958859853,-622.30222,0.00040888,30]
[393739198,1762958859915,-1083.62189242,0.00041,30]
[393739199,1762958859979,-250.0,0.00041,120]
[393739200,1762958860039,-619.43509148,0.00041,120]
[393739201,1762958860100,-500.0,0.00041051,120]
[393739202,1762958860162,-500.0,0.00041062,120]
[393739203,1762958860226,-622.30222,0.00041088,30]
[393739204,1762958860291,-1038.28,0.00041095,120]
[393739205,1762958860350,-1038.28,0.00041095,120]
[393739206,1762958860409,-1038.28,0.00041095,120]
[393739207,1762958860469,-1038.28,0.00041095,120]
[393739208,1762958860528,-1038.28,0.00041095,120]
[393739209,1762958860588,-1038.28,0.00041095,120]
[393739210,1762958860652,-1038.28,0.00041095,120]
[393739211,1762958860709,-1038.28,0.00041095,120]
[393739212,1762958860768,-1038.28,0.00041095,120]
[393739213,1762958860831,-1038.28,0.00041095,120]
[393739214,1762958860887,-1038.28,0.00041095,120]
[393739215,1762958861091,-1038.28,0.00041095,120]
[393739216,1762958861168,-1038.28,0.00041095,120]
[393739217,1762958861244,-1038.28,0.00041095,120]
[393739218,1762958861311,-492.5,0.00041096,120]
[393739219,1762958861372,-1761.39,0.00041096,120]
[393739220,1762958861434,-622.30222,0.00041288,30]
[393739221,1762958861495,-622.30222,0.00041488,30]
[393739222,1762958861558,-403.04,0.000416,30]
[393739223,1762958861623,-849.44,0.000416,30]
[393739224,1762958861691,-180.96051502,0.00041643,120]
[393739225,1762958861759,-622.30222,0.00041688,30]
[393739226,1762958861821,-150.0,0.00041707,120]
[393739227,1762958861880,-206.3313054,0.00041839,120]
[393739228,1762958861945,-622.30222,0.00041888,30]
[393739229,1762958862014,-207.0,0.00041993,120]
[393739230,1762958862077,-647.5932924,0.00041999,120]
[393739231,1762958862135,-239.36,0.00042,30]
[393739232,1762958862199,-455.75066038,0.00042,120]
[393739233,1762958862258,-200.0,0.00042,120]
[393739234,1762958862316,-319.8200713,0.00042,120]
[393739235,1762958862374,-867.24667654,0.00042,30]
[393739236,1762958862429,-668.13034499,0.00042,30]
[393739237,1762958862485,-347.14606248,0.00042,30]
[393739238,1762958862543,-1342.63755437,0.00042,120]
[393739239,1762958862607,-153.17750614,0.00042164,30]
[393739240,1762958862668,-169.11724677,0.000423,120]
[393739241,1762958862734,-153.17750614,0.00042438,30]
[393739242,1762958862799,-620.51990014,0.000425,120]
[393739243,1762958862858,-863.02734875,0.000425,120]
[393739244,1762958862917,-982.55,0.00042509,120]
[393739245,1762958862978,-500.0,0.00042662,120]
[393739246,1762958863040,-979.327613,0.00042662,120]
[393739247,1762958863098,-500.0,0.00042662,120]
[393739248,1762958863158,-500.0,0.00042662,120]
[393739249,1762958863225,-200.0,0.00042662,120]
[393739250,1762958863287,-357.05173975,0.000427,90]
[393739251,1762958863345,-153.17750614,0.00042712,30]
[393739252,1762958863404,-1086.54962351,0.00042745,120]
[393739253,1762958863460,-206.52380219,0.00042753,120]
[393739254,1762958863519,-403.04,0.000428,30]
[393739255,1762958863582,-849.44,0.000428,30]
[393739256,1762958863641,-153.17750614,0.00042959,30]
[393739257,1762958863705,-1000.0,0.00043,120]
[393739258,1762958863772,-150.0,0.00043,120]
[393739259,1762958863841,-212.11025107,0.00043,120]
[393739260,1762958863909,-198.10618091,0.00043,120]
[393739261,1762958863971,-203.84,0.00043014,120]
[393739262,1762958864031,-206.3313054,0.00043057,120]
[393739263,1762958864089,-153.17750614,0.00043233,30]
[393739264,1762958864147,-150.0,0.00043341,120]
[393739265,1762958864215,-153.17750614,0.00043507,30]
[393739266,1762958864279,-184.95,0.0004362,120]
[393739267,1762958864338,-1014.0,0.0004365,30]
[393739268,1762958864396,-698.92180901,0.000437,120]
[393739269,1762958864461,-153.17750614,0.00043781,30]
[393739270,1762958864522,-501.29132371,0.000438,120]
[393739271,1762958864584,-1000.0,0.00043835,120]
[393739272,1762958864646,-1000.0,0.00043835,120]
[393739273,1762958864709,-1000.0,0.00043835,120]
[393739274,1762958864767,-1000.0,0.00043835,120]
[393739275,1762958864826,-1000.0,0.00043835,120]
[393739276,1762958864881,-1000.0,0.00043835,120]
[393739277,1762958864937,-1000.0,0.00043835,120]
[393739278,1762958865002,-1000.0,0.00043835,120]
[393739279,1762958865066,-287.55415691,0.00043835,120]
[393739280,1762958865124,-500.0,0.00043836,31]
[393739281,1762958865187,-403.04,0.000439,30]
[393739282,1762958865248,-849.44,0.000439,30]
[393739283,1762958865305,-1062.2396557,0.00043999,120]
[393739284,1762958865363,-547.485106,0.00044,57]
[393739285,1762958865425,-153.0,0.00044,120]
[393739286,1762958865487,-155.0,0.00044,120]
[393739287,1762958865547,-200.0,0.00044,120]
[393739288,1762958865609,-1093.24818852,0.00044,120]
[393739289,1762958865667,-747.35461811,0.00044,120]
[393739290,1762958865725,-179.68897296,0.00044,120]
[393739291,1762958865785,-172.0,0.00044,90]
[393739292,1762958865846,-489.0,0.00044,90]
[393739293,1762958865909,-153.17750614,0.00044027,30]
[393739294,1762958865973,-207.0,0.00044093,120]
[393739295,1762958866037,-1014.0,0.000441,30]
[393739296,1762958866104,-489.0,0.0004411,90]
[393739297,1762958866172,-153.0,0.00044209,120]
[393739298,1762958866249,-153.0,0.00044209,120]
[393739299,1762958866322,-153.0,0.00044209,120]
[393739300,1762958866391,-153.0,0.00044209,120]
[393739301,1762958866460,-153.0,0.00044209,120]
[393739302,1762958866521,-153.0,0.00044209,120]
[393739303,1762958866589,-153.0,0.00044209,120]
[393739304,1762958866658,-153.0,0.00044209,120]
[393739305,1762958866720,-153.0,0.00044209,120]
[393739306,1762958866780,-153.0,0.00044209,120]
[393739307,1762958866839,-153.0,0.00044209,120]
[393739308,1762958866895,-153.0,0.00044209,120]
[393739309,1762958866956,-153.0,0.00044209,120]
[393739310,1762958867014,-153.0,0.00044209,120]
[393739311,1762958867071,-284.0,0.00044209,120]
[393739312,1762958867127,-284.0,0.00044209,120]
[393739313,1762958867185,-284.0,0.00044209,120]
[393739314,1762958867243,-284.0,0.00044209,120]
[393739315,1762958867300,-284.0,0.00044209,120]
[393739316,1762958867365,-155.0,0.00044209,120]
[393739317,1762958867434,-155.0,0.00044209,120]
[393739318,1762958867634,-155.0,0.00044209,120]
[393739319,1762958867700,-155.0,0.00044209,120]
[393739320,1762958867762,-155.0,0.00044209,120]
[393739321,1762958867819,-155.0,0.00044209,120]
[393739322,1762958867876,-155.0,0.00044209,120]
[393739323,1762958867935,-155.0,0.00044209,120]
[393739324,1762958867997,-155.0,0.00044209,120]
[393739325,1762958868056,-155.0,0.00044209,120]
[393739326,1762958868113,-155.0,0.00044209,120]
[393739327,1762958868173,-242.0,0.00044209,120]
[393739328,1762958868235,-242.0,0.00044209,120]
[393739329,1762958868294,-242.0,0.00044209,120]
[393739330,1762958868351,-242.0,0.00044209,120]
[393739331,1762958868410,-242.0,0.00044209,120]
[393739332,1762958868465,-242.0,0.00044209,120]
[393739333,1762958868524,-157.0,0.00044209,120]
[393739334,1762958868586,-157.0,0.00044209,120]
[393739335,1762958868648,-157.0,0.00044209,120]
[393739336,1762958868713,-157.0,0.00044209,120]
[393739337,1762958868774,-157.0,0.00044209,120]
[393739338,1762958868830,-157.0,0.00044209,120]
[393739339,1762958868887,-157.0,0.00044209,120]
[393739340,1762958868943,-157.0,0.00044209,120]
[393739341,1762958869002,-157.0,0.00044209,120]
[393739342,1762958869059,-157.0,0.00044209,120]
[393739343,1762958869116,-157.0,0.00044209,120]
[393739344,1762958869175,-402.0,0.00044209,120]
[393739345,1762958869232,-402.0,0.00044209,120]
[393739346,1762958869289,-402.0,0.00044209,120]
[393739347,1762958869348,-402.0,0.00044209,120]
[393739348,1762958869413,-402.0,0.00044209,120]
[393739349,1762958869471,-162.0,0.00044209,120]
[393739350,1762958869535,-162.0,0.00044209,120]
[393739351,1762958869597,-162.0,0.00044209,120]
[393739352,1762958869664,-162.0,0.00044209,120]
[393739353,1762958869726,-162.0,0.00044209,120]
[393739354,1762958869786,-162.0,0.00044209,120]
[393739355,1762958869849,-162.0,0.00044209,120]
[393739356,1762958869912,-162.0,0.00044209,120]
[393739357,1762958869970,-162.0,0.00044209,120]
[393739358,1762958870032,-162.0,0.00044209,120]
[393739359,1762958870088,-162.0,0.00044209,120]
[393739360,1762958870143,-297.0,0.00044209,120]
[393739361,1762958870204,-297.0,0.00044209,120]
[393739362,1762958870267,-297.0,0.00044209,120]
[393739363,1762958870327,-297.0,0.00044209,120]
[393739364,1762958870386,-297.0,0.00044209,120]
[393739365,1762958870446,-297.0,0.00044209,120]
[393739366,1762958870509,-163.0,0.00044209,120]
[393739367,1762958870569,-163.0,0.00044209,120]
[393739368,1762958870631,-163.0,0.00044209,120]
[393739369,1762958870692,-163.0,0.00044209,120]
[393739370,1762958870749,-163.0,0.00044209,120]
[393739371,1762958870807,-163.0,0.00044209,120]
[393739372,1762958870864,-163.0,0.00044209,120]
[393739373,1762958870919,-163.0,0.00044209,120]
[393739374,1762958870976,-163.0,0.00044209,120]
[393739375,1762958871036,-163.0,0.00044209,120]
[393739376,1762958871092,-163.0,0.00044209,120]
[393739377,1762958871173,-323.0,0.00044209,120]
[393739378,1762958871238,-323.0,0.00044209,120]
[393739379,1762958871300,-323.0,0.00044209,120]
[393739380,1762958871361,-323.0,0.00044209,120]
[393739381,1762958871423,-323.0,0.00044209,120]
[393739382,1762958871490,-170.0,0.00044209,120]
[393739383,1762958871555,-170.0,0.00044209,120]
[393739384,1762958871618,-170.0,0.00044209,120]
[393739385,1762958871679,-170.0,0.00044209,120]
[393739386,1762958871738,-170.0,0.00044209,120]
[393739387,1762958871800,-170.0,0.00044209,120]